Cogmind - Beta 15 @@@ ROGUE MODE // 2025.05.31 @ 18:17:03 // Winter2022/Polymind Player: Figgis Result: Destroyed by as-27415 with Assembled Rifle Performance ------------- Evolutions (0) 0 Regions Visited (2) 400 Robots Destroyed (0) 0 Value Destroyed (0) 0 Prototype IDs (2) 40 Alien Tech Used (0) 0 Bonus (1125) 1125 TOTAL SCORE: 805 Bonus ------- Polymind Skill 1125 Cogmind --------- Core Integrity 0/250 Matter 0/0 Energy 25/25 System Corruption 1% Temperature Cool (0) Movement Hovering (60) Location -10/Mines Parts ------- > --- POWER (1) -------- (None) > --- PROPULSION (2) --- Hover Unit > --- UTILITY (1) ------ (None) > --- WEAPON (1) ------- (None) > --- INVENTORY (1) ---- Experimental Sensor Array Peak State ------------ > --- POWER ------------ Light Ion Engine > --- PROPULSION ------- Hover Unit Hover Unit > --- UTILITY ---------- Hacking Suite > --- WEAPON ----------- Datajack > --- INVENTORY -------- (None) [Rating: 7] Favorites ----------- Power Light Ion Engine Engine Light Ion Engine Propulsion Hover Unit Hover Unit Hover Unit Utility Hacking Suite Hackware Hacking Suite Weapon Datajack Special Melee Weapon Datajack Build | -11 -10 -10 ------- Run | Yrd Mat Min Slots Evolved . | . . . Power . | . . . Propulsion . | . . . Utility . | . . . Weapon . | . . . Parts Attached . | . . . Power . | . . . Engine . | . . . Core . | . . . Reactor . | . . . Propulsion . | . . . Treads . | . . . Leg . | . . . Wheel . | . . . Hover . | . . . Flight . | . . . Utility . | . . . Device . | . . . Storage . | . . . Processor . | . . . Hackware . | . . . Protection . | . . . Artifact . | . . . Weapon . | . . . Energy Gun . | . . . Energy Cannon . | . . . Ballistic Gun . | . . . Ballistic Cannon . | . . . Launcher . | . . . Special Weapon . | . . . Impact Weapon . | . . . Slashing Weapon . | . . . Piercing Weapon . | . . . Special Melee Weapon . | . . . Unidentified Prototypes . | . . . Parts Lost 4 | . . 4 Power 1 | . . 1 Propulsion 1 | . . 1 Utility 1 | . . 1 Weapon 1 | . . 1 Highest Loss Streak 4 | . . 4 To Critical Strikes . | . . . Average Backups . | . . . Power . | . . . Propulsion . | . . . Utility . | . . . Weapon . | . . . Tool/Special . | . . . Unused Backups 1 | . . 1 Power . | . . . Propulsion . | . . . Utility 1 | . . 1 Weapon . | . . . Tool/Special . | . . . Average Slot Usage (%) 90 | . 75 93 Engine 19 | . 15 20 Hover 36 | . 30 37 Hackware 17 | . 15 17 Special Melee Weapon 17 | . 15 17 Peak Build Rating 7 | . 7 7 Average Rating 6 | . 5 6 On Entrance 2 | . . 7 Naked Turns 6 | . 6 . Heaviest Build 4 | . 4 4 Greatest Support 12 | 3 12 12 Greatest Overweight (x) . | . . . Average Overweight (x) . | . . . Largest Inventory Capacity 1 | . 1 1 Average Capacity . | . . 1 Most Carried 1 | . . 1 Average Carried . | . . . Final Capacity 1 | . 1 1 Final Carried 1 | . . 1 Class Distribution -------------------- 97% | Operator Dominant Class ---------------- Operator | -10/Materials Operator | -10/Mines Resources | -11 -10 -10 ----------- Run | Yrd Mat Min Matter Collected . | . . . Remotely . | . . . Salvage Created . | . . . Parts . | . . . Haulers Intercepted . | . . . Recyclers Shooed . | . . . Parts Field Recycled . | . . . Retrieved Matter . | . . . Parts Self-Destructed . | . . . Prevented . | . . . Kills | -11 -10 -10 ------- Run | Yrd Mat Min Combat Hostiles Destroyed . | . . . Classes Destroyed . | . . . Best Kill Streak . | . . . Combat Bots Only . | . . . Max Kills in Single Turn . | . . . Gunslinging . | . . . Exploded . | . . . Melee . | . . . Uniques/NPCs Destroyed . | . . . Combat | -11 -10 -10 -------- Run | Yrd Mat Min Hostile Shots Fired 28 | . . 28 Missed 8 | . . 8 Hits 20 | . . 20 Melee 4 | . . 4 Projectile 16 | . . 16 Part Disruptions 1 | . . 1 Damage Taken 359 | . . 359 Core 263 | . . 263 Absorbed by Shields . | . . . Core Remaining (%) 100 | 100 . . Volleys Fired . | . . . Largest . | . . . Hottest . | . . . Shots Fired . | . . . Gun . | . . . Cannon . | . . . Launcher . | . . . Special . | . . . Kinetic . | . . . Thermal . | . . . Explosive . | . . . Electromagnetic . | . . . Robot Hit Streak . | . . . Robot Miss Streak . | . . . Penetration Max . | . . . Secondary Targets . | . . . Shots Hit Robots 5 | . 1 4 Core Hits . | . . . Critical Kills . | . . . Critical Parts Destroyed . | . . . Critical Strikes . | . . . Melee Attacks 6 | . 1 5 Impact . | . . . Slashing . | . . . Piercing . | . . . Sneak Attacks 4 | . 1 3 Combat Hostiles 1 | . 1 . Follow-up Attacks . | . . . Damage Inflicted 6 | . . 6 Guns . | . . . Cannons . | . . . Explosions . | . . . Melee . | . . . Ramming 6 | . . 6 Kinetic . | . . . Thermal . | . . . Explosive . | . . . Electromagnetic . | . . . Impact . | . . . Slashing . | . . . Piercing . | . . . Highest Corruption 1 | . . 1 Average Corruption 1 | . . 1 Corruption Purged . | . . . Corruption Blocked . | . . . Overload Shots . | . . . Overflow Damage . | . . . Projectiles . | . . . Explosions . | . . . Melee . | . . . Knockbacks . | . . . Impact . | . . . Kinetic . | . . . Secondary . | . . . Self-Inflicted Damage 2 | . . 2 Shots . | . . . Rammed 3 | . . 3 Targets Rammed 3 | . . 3 Kicked . | . . . Crushed . | . . . Highest Temperature 12 | . . 12 Average Temperature 9 | . . 9 Received Heat Transfer 40 | . . 40 Siege Activations . | . . . Martial Activations . | . . . Shielding Activations . | . . . Robots Disrupted . | . . . Combat Hostiles . | . . . Robots Corrupted . | . . . Combat Hostiles . | . . . Parts Fried . | . . . Impact Corruptions . | . . . Robots Melted . | . . . Combat Hostiles . | . . . Parts Melted . | . . . Heat Transferred . | . . . Parts Sabotaged . | . . . Parts Stolen . | . . . Parts Stripped . | . . . Power Chain Reactions . | . . . Alert | -11 -10 -10 ------- Run | Yrd Mat Min Maximum Alert Level . | . . . Low Security (%) 100 | 100 100 100 Level 1 . | . . . Level 2 . | . . . Level 3 . | . . . Level 4 . | . . . Level 5 . | . . . High Security . | . . . Max Security . | . . . Peak Influence . | . . . Initial . | . . . Average . | . . . Influence Increases . | . . . Influence Decreases . | . . . Squads Dispatched . | . . . Investigation . | . . . Extermination . | . . . Reinforcement . | . . . Assault . | . . . Garrison . | . . . Intercept . | . . . Searches Triggered . | . . . Construction Impeded . | . . . Haulers Reinforced . | . . . Active Scanning Responses . | . . . Cargo Convoy Interrupts . | . . . Stealth | -11 -10 -10 --------- Run | Yrd Mat Min Distress Signals 1 | . . 1 Communications Jammed . | . . . Distress Signals . | . . . Times Spotted 13 | . 1 12 Peak Tracking Total 7 | . 1 7 Tactical Retreats 1 | . . 1 Traps | -11 -10 -10 ------- Run | Yrd Mat Min Traps Triggered . | . . . Indirectly . | . . . Trap Hack Attempts . | . . . Triggered . | . . . Disarmed . | . . . Reprogrammed . | . . . Reused . | . . . Traps Extracted . | . . . Installed . | . . . Triggered . | . . . Machines | -11 -10 -10 ---------- Run | Yrd Mat Min Machines Disabled . | . . . Max in Single Turn . | . . . Machines Repaired . | . . . Machines Dismantled . | . . . Machines Sabotaged . | . . . Overloaded Fab Kills . | . . . Hacking | -11 -10 -10 --------- Run | Yrd Mat Min Machines Accessed 2 | . 2 . Terminals 2 | . 2 . Fabricators . | . . . Repair Stations . | . . . Recycling Units . | . . . Scanalyzers . | . . . Garrison Access . | . . . Total Hacks 6 | . 6 . Successful 3 | . 3 . Failed 2 | . 2 . Catastrophic . | . . . Database Lockouts 1 | . 1 . Manual 4 | . 4 . Terminals 6 | . 6 . Fabricators . | . . . Repair Stations . | . . . Recycling Units . | . . . Scanalyzers . | . . . Garrison Access . | . . . Terminal Hacks 3 | . 3 . Robot Analysis 1 | . 1 . Prototype ID Bank 1 | . 1 . Emergency Access Points 1 | . 1 . Fabricator Hacks . | . . . Repair Station Hacks . | . . . Recycling Unit Hacks . | . . . Scanalyzer . | . . . Garrison Access Hacks . | . . . Unauthorized Hacks . | . . . Terminals . | . . . Fabricators . | . . . Repair Stations . | . . . Recycling Units . | . . . Scanalyzers . | . . . Garrison Access . | . . . Data Cores Recovered . | . . . Used . | . . . Hacking Detections 2 | . 2 . Full Trace Events . | . . . Feedback Events . | . . . Feedback Blocked . | . . . Robot Schematics Acquired . | . . . Robots Built . | . . . Authchips . | . . . Time . | . . . Total Robot Build Rating . | . . . Part Schematics Acquired . | . . . Parts Built . | . . . Authchips . | . . . Time . | . . . Total Part Build Rating . | . . . Parts Repaired . | . . . Time . | . . . Parts Recycled . | . . . Recycled Matter . | . . . Retrieved Matter . | . . . Retrieved Components . | . . . Parts Scanalyzed . | . . . Part Schematics Acquired . | . . . Parts Damaged . | . . . Bothacking | -11 -10 -10 ------------ Run | Yrd Mat Min Used RIF Installer . | . . . Robots Hacked 5 | . 2 3 Non-combat 3 | . 1 2 Combat 2 | . 1 1 Robot Hacks Applied 6 | . 2 4 parse_system 3 | . 1 2 no_distress 2 | . . 2 find_terminals 1 | . 1 . Relay Couplers Released . | . . . Fabnet Peak Effective % . | . . . Robots Rewired . | . . . Allies Hacked . | . . . Hacks Repelled . | . . . Allies | -11 -10 -10 -------- Run | Yrd Mat Min Total Allies 3 | . . 3 Largest Group 3 | . . 3 Highest-Rated Group 40 | . . 40 Highest-Rated Ally 16 | . . 16 Total Orders . | . . . Ally Attacks 3 | . . 3 Total Damage 17 | . . 17 Kills . | . . . Allies Corrupted . | . . . Allies Melted . | . . . Intel | -11 -10 -10 ------- Run | Yrd Mat Min Active Infowar (turns) . | . . . Robot Analysis Total 2 | . 2 . Derelict Logs Recovered 1 | . . 1 Drone Launches . | . . . Drone Recoveries . | . . . Exploration | -11 -10 -10 ------------- Run | Yrd Mat Min Turns Passed 293 | 9 36 248 Spaces Moved 429 | 18 62 349 Core 29 | 18 11 . Treads . | . . . Legs . | . . . Wheels . | . . . Hover 400 | . 51 349 Flight . | . . . Fastest Speed 50 | 50 50 56 Average Speed 55 | 50 54 56 Slowest Speed 60 | 50 56 60 Overloaded Moves . | . . . Propulsion Burnouts . | . . . Robots Hopped . | . . . Potential Cave-ins . | . . . Cave-ins Triggered . | . . . Exploration Rate (%) 33 | 3 22 76 Regions Visited 2 Branch Regions 1 Pre-discovered Areas 1 | . . 1 Known Exits Taken . | . . . Unknown Exits Taken 2 | 1 1 . Scrap Searched 1 | . . 1 Spaces Dug . | . . . Terrain Destroyed . | . . . Melee . | . . . Projectile . | . . . AOE . | . . . Terrain Rammed . | . . . Walls Destroyed . | . . . Machines Disabled . | . . . Actions | -11 -10 -10 --------- Run | Yrd Mat Min Total 476 | 17 62 397 Wait 39 | . . 39 Move 427 | 17 61 349 Hop . | . . . Pick Up 1 | . . 1 Fast Attach . | . . . Attach . | . . . Detach . | . . . Swap . | . . . Drop . | . . . Fire . | . . . Melee 6 | . 1 5 Ram 3 | . . 3 Kick . | . . . Crush . | . . . Escape Stasis . | . . . Rewire . | . . . Trap . | . . . Miscellaneous . | . . . Route ------- -11/Scrapyard -10/Materials -10/Mines (discovered 1 exit: [*Mat]) History --------- Turn | Location | Event 4 | -11/Scrapyard | Discovered new exit (range 13) 10 | -11/Scrapyard | Entered Materials 25 | -10/Materials | Central database locked down 38 | -10/Materials | Discovered new exit (range 10) 46 | -10/Materials | Entered Mines 47 | -10/Mines | Assembled infested the area 50 | -10/Mines | Assisted by bots powering up and referring to "LRC-V3" 52 | -10/Mines | Assisted by a Guerilla fighting off Assembled 62 | -10/Mines | A weapon hastily lodged in a ceiling crevice suddenly fell to the ground 67 | -10/Mines | Met a Derelict bent on vengeance 72 | -10/Mines | Learned Materials stockpile data 81 | -10/Mines | Found a damaged Exp. Sensor Array with a note attached 82 | -10/Mines | Found Prototype Device 213 | -10/Mines | Discovered new exit (range 3) 220 | -10/Mines | Received a Rocket Launcher from a helpful Derelict 228 | -10/Mines | Learned location of Storage (-7) 280 | -10/Mines | Core integrity fell below 50% 284 | -10/Mines | Found a hidden stash of uninstalled traps 292 | -10/Mines | Core integrity fell below 20% 294 | -10/Mines | Destroyed by as-27415 with Assembled Rifle Last Messages --------------- World map updated: -7/Storage. 00230_ Y4-M6A(g): "We scattered so the Unaware couldn't effectively use their advantage in numbers, and I suggest you do the same." 00230_ Y4-M6A(g) slips back into the shadows. 00251_ K-01 Serf collects debris. 00259_ The unstable cave ceiling collapses. 00260_ K-01 Serf destroyed. 00265_ Jacked as-27415... >>parse_system Reading system data... 00266_ The unstable cave ceiling collapses. 00266_ Wheel crushed. 00266_ Hover Unit destroyed. 00266_ Datajack destroyed. 00266_ Slammed into as-27415. 00269_ Slammed into as-08944. 00269_ Hacking Suite destroyed. 00269_ System corrupted by crushing effect (+1). 00284_ A stash of uninstalled traps is collected here! 00292_ Lgt. Ion Engine destroyed. Map ----- +----------------------------------------------------+ | | | | | | | | | | | | | | | | | | | | | | | | | | | | | | | | | | | | | ?????????????????????????????????????????????????? | | ?????????????????????????????????????????????????? | | ?????????????????????????????????????????????????? | | ?????????????????????????????????????????????????? | | ??????????????????????????????#####?####?????????? | | ???????????????????????######## &### ##????????? | | ???????????????????##### a a& & #????????? | | ???????????????????# o a a ## ##????????? | | ?????????????# ### # a #### ##?????????? | | ???????????????????????# ######??#####??????????? | | ???????????????????????# #??????????????????????? | | ???????????????????????# #??????????????????????? | | ??????????????????????## #???????##########?????? | | ?????????????????????## #??????## #####?? | | ????????????????????## #??????# #?? | | ????????????????????# #??????# ### ## ### | | ????????????????????# ##??????# ###?###### | | ???????????????????## ##???????###?????????# ### | | ??????????????????## #????????????????????# #?? | | ?????????????????## ##???????????????????# ##? | | ????????????###### ##?????????????????## ## | | ????????????# ####??????????????# # | | ????????????# % #?????????????## | | ????????????# ## #????????????## | | ????????????##### ## ##???????????# # | | ????????????????## ## ## ######??????# ## | | ?????????????????###### # * ####???# ### | | ??? ????????????????# % % ## ###?## | | #?# ????????????????## ## = # # #### ### | | ## ????????????????##### # #! #?? | | ???????????????????# ] #=## #?? | | ????????????????????## #%# ##? | +----------------------------------------------------+ Best States ------------- Heat Dissipation 25 Energy Generation 10 Energy Capacity 100 Sight Range 16 Terrain Scan Density 10 Evasion (%) 53 Offensive Hacking 10 Item Schematics ----------------- None Robot Schematics ------------------ None Fabricated ------------ Nothing Repaired ---------- Nothing Alien Tech Used ----------------- None Achievements -------------- None Challenges ------------ None Polymind | -11 -10 -10 ---------- Run | Yrd Mat Min Hosts 1 | . 1 . Combat Hostiles . | . . . Allies . | . . . Unique Host Classes 1 | . 1 . Average Host Suspicion 67 | . 21 72 Unsuspicious Activity 67 | . 17 50 Returns to Shadow . | . . . Fuzzy Dispatches . | . . . Protomatter Created 49 | . . 49 Used 5 | . 5 . Decayed 49 | . . 49 Highest Spend 5 | . 5 . Game ------ Seed HypervelocityDroneNetwork Manual? 0 Play Time 00:07:02 Cumulative 167.3 hours Start 2025.05.31 @ 18:12:27 End 2025.05.31 @ 18:17:03 Sessions 1 Manual Loads 0 Difficulty Rogue Special Mode Winter2022/Polymind Game No. 255 Rogue 252 Adventurer 3 Explorer 0 Win Type - Total 1 Types 1/0/0/0/0/0/0/0/0/0 Lore% 55 Gallery% 57 Achievement% 45 Wizard Run 0 Options --------- Layout 0 ASCII 0 Keyboard 0 Movement Mouse Keybinds 0 Fullscreen 2 Font 18/SmallcapsGlow Map View 76x50 Zoom Use 0% Tactical HUD 1 Map Filters NONE Filters NONE Steam 1 RUN: 29964cd9-785c-4d7a-98ee-64d86e19710c